[Event "*** Titled Tuesday Blitz"]
[Site "Chess.com"]
[Date "2019.12.03"]
[Round "9"]
[White "Leonid_Starozhilov"]
[Black "Micki-taryan"]
[Result "0-1"]
[WhiteElo "2670"]
[BlackElo "2969"]
[TimeControl "180+2"]
[EndTime "15:04:10 PST"]
[Termination "Micki-taryan won by resignation"]

1. Nf3 {[%clk 0:03:01.9]} 1... Nf6 {[%clk 0:02:59.4]} 2. g3 {[%clk 0:03:03.4]}
2... Nc6 {[%clk 0:02:56.4]} 3. d4 {[%clk 0:03:02]} 3... d6 {[%clk 0:02:57.7]} 4.
Bg2 {[%clk 0:03:02.9]} 4... g6 {[%clk 0:02:58.1]} 5. O-O {[%clk 0:03:03.4]} 5...
Bg7 {[%clk 0:02:59.2]} 6. Nc3 {[%clk 0:03:00.3]} 6... O-O {[%clk 0:02:57.6]} 7.
e4 {[%clk 0:03:01.2]} 7... e5 {[%clk 0:02:58.8]} 8. dxe5 {[%clk 0:03:01.9]} 8...
Nxe5 {[%clk 0:02:56.6]} 9. Nxe5 {[%clk 0:03:02.9]} 9... dxe5 {[%clk 0:02:58.5]}
10. Bg5 {[%clk 0:02:40.2]} 10... c6 {[%clk 0:02:57.8]} 11. Qxd8 {[%clk 0:02:38]}
11... Rxd8 {[%clk 0:02:59.7]} 12. a4 {[%clk 0:02:36.6]} 12... h6 {[%clk
0:02:55.4]} 13. Be3 {[%clk 0:02:29.6]} 13... Ng4 {[%clk 0:02:36.3]} 14. Rad1
{[%clk 0:02:27.1]} 14... Re8 {[%clk 0:02:31.2]} 15. Bc1 {[%clk 0:02:16.2]} 15...
Bf8 {[%clk 0:02:23]} 16. h3 {[%clk 0:02:15.6]} 16... Nf6 {[%clk 0:02:23.6]} 17.
Be3 {[%clk 0:02:17]} 17... Kg7 {[%clk 0:02:07.6]} 18. f4 {[%clk 0:01:58.7]}
18... Be6 {[%clk 0:02:06]} 19. b3 {[%clk 0:01:34.8]} 19... Bb4 {[%clk
0:02:03.9]} 20. Na2 {[%clk 0:01:35.7]} 20... Be7 {[%clk 0:02:04.4]} 21. f5
{[%clk 0:01:33.1]} 21... gxf5 {[%clk 0:02:06.3]} 22. exf5 {[%clk 0:01:34.4]}
22... Bd5 {[%clk 0:02:07.9]} 23. c4 {[%clk 0:01:30.1]} 23... Bxg2 {[%clk
0:02:07.5]} 24. Kxg2 {[%clk 0:01:32]} 24... h5 {[%clk 0:02:08.1]} 25. Nc3 {[%clk
0:01:22.8]} 25... Bb4 {[%clk 0:02:08.5]} 26. Ne2 {[%clk 0:01:18.3]} 26... a5
{[%clk 0:02:08.1]} 27. Kf3 {[%clk 0:01:03.8]} 27... Rad8 {[%clk 0:02:07]} 28. g4
{[%clk 0:01:01]} 28... e4+ {[%clk 0:02:08]} 29. Kg3 {[%clk 0:01:02.1]} 29...
hxg4 {[%clk 0:02:09.9]} 30. hxg4 {[%clk 0:01:03.3]} 30... Rd3 {[%clk 0:02:11.5]}
31. Kf4 {[%clk 0:00:29.4]} 31... Bd6+ {[%clk 0:02:07.8]} 32. Kg5 {[%clk
0:00:30.7]} 32... Rxe3 {[%clk 0:01:59.8]} 33. Rxd6 {[%clk 0:00:29.6]} 33... Nh7+
{[%clk 0:02:00.3]} 34. Kf4 {[%clk 0:00:27.6]} 34... Rxe2 {[%clk 0:02:00.2]} 35.
g5 {[%clk 0:00:29.1]} 35... e3 {[%clk 0:01:57.9]} 36. Kf3 {[%clk 0:00:18.1]}
36... Rf2+ {[%clk 0:01:56.4]} 37. Rxf2 {[%clk 0:00:19.1]} 37... Nxg5+ {[%clk
0:01:58.3]} 38. Kg2 {[%clk 0:00:19.2]} 38... exf2 {[%clk 0:02:00.2]} 39. Kxf2
{[%clk 0:00:21.1]} 39... Ne4+ {[%clk 0:02:02.1]} 0-1

[Event "*** Titled Tuesday Blitz"]
[Site "Chess.com"]
[Date "2019.12.03"]
[Round "9"]
[White "Zq1"]
[Black "ChessWarrior7197"]
[Result "1/2-1/2"]
[WhiteElo "2548"]
[BlackElo "2892"]
[TimeControl "180+2"]
[EndTime "15:04:13 PST"]
[Termination "Game drawn by repetition"]

1. d4 {[%clk 0:02:59.9]} 1... Nf6 {[%clk 0:03:00.7]} 2. c4 {[%clk 0:03:00.9]}
2... e6 {[%clk 0:03:02.2]} 3. Nc3 {[%clk 0:03:00.5]} 3... Bb4 {[%clk 0:03:02.9]}
4. e3 {[%clk 0:03:01]} 4... O-O {[%clk 0:03:03.8]} 5. Bd3 {[%clk 0:03:01.7]}
5... d5 {[%clk 0:03:03.9]} 6. Nf3 {[%clk 0:03:02]} 6... c5 {[%clk 0:03:04.5]} 7.
cxd5 {[%clk 0:02:59.7]} 7... exd5 {[%clk 0:03:02.2]} 8. a3 {[%clk 0:02:58.4]}
8... Bxc3+ {[%clk 0:03:02.8]} 9. bxc3 {[%clk 0:02:58.9]} 9... c4 {[%clk
0:03:02.2]} 10. Bc2 {[%clk 0:02:59.2]} 10... Bg4 {[%clk 0:03:03.8]} 11. a4
{[%clk 0:02:53.7]} 11... Bh5 {[%clk 0:03:04.2]} 12. Ba3 {[%clk 0:02:43.8]} 12...
Re8 {[%clk 0:03:05.5]} 13. Qb1 {[%clk 0:02:30.3]} 13... b6 {[%clk 0:03:03]} 14.
Nd2 {[%clk 0:02:26.3]} 14... Bg6 {[%clk 0:03:03.3]} 15. O-O {[%clk 0:02:24.8]}
15... Nc6 {[%clk 0:03:02.4]} 16. Bxg6 {[%clk 0:02:21.3]} 16... hxg6 {[%clk
0:03:03.2]} 17. Qc2 {[%clk 0:02:22.3]} 17... Qd7 {[%clk 0:03:03.6]} 18. Rae1
{[%clk 0:02:19.2]} 18... g5 {[%clk 0:03:04.5]} 19. h3 {[%clk 0:02:17.8]} 19...
g4 {[%clk 0:03:02.6]} 20. hxg4 {[%clk 0:02:18.5]} 20... Qxg4 {[%clk 0:03:04.4]}
21. f3 {[%clk 0:02:19]} 21... Qh5 {[%clk 0:03:02.2]} 22. Bd6 {[%clk 0:02:12.4]}
22... Re6 {[%clk 0:03:02.3]} 23. Bf4 {[%clk 0:02:06.9]} 23... Rae8 {[%clk
0:03:03.6]} 24. e4 {[%clk 0:01:57.3]} 24... Qg6 {[%clk 0:03:03.1]} 25. Qa2
{[%clk 0:01:28.3]} 25... Nh5 {[%clk 0:03:03.1]} 26. Bh2 {[%clk 0:01:25.9]} 26...
Ng3 {[%clk 0:03:04.3]} 27. Rf2 {[%clk 0:01:06.1]} 27... dxe4 {[%clk 0:03:02.5]}
28. d5 {[%clk 0:00:43.7]} 28... e3 {[%clk 0:03:03.4]} 29. dxe6 {[%clk 0:00:44]}
29... Rxe6 {[%clk 0:03:05]} 30. Bxg3 {[%clk 0:00:34.7]} 30... Qxg3 {[%clk
0:03:01.9]} 31. Rfe2 {[%clk 0:00:34]} 31... exd2 {[%clk 0:02:50]} 32. Qxd2
{[%clk 0:00:31.7]} 32... Rh6 {[%clk 0:02:51.4]} 33. Re8+ {[%clk 0:00:26.8]}
33... Kh7 {[%clk 0:02:52.7]} 34. Qf2 {[%clk 0:00:27.6]} 34... Qh2+ {[%clk
0:02:53.2]} 35. Kf1 {[%clk 0:00:28.3]} 35... Qh1+ {[%clk 0:02:53.3]} 36. Qg1
{[%clk 0:00:24.5]} 36... Qh5 {[%clk 0:02:54]} 37. Qe3 {[%clk 0:00:22.6]} 37...
Qh1+ {[%clk 0:02:46.9]} 38. Qg1 {[%clk 0:00:23.3]} 38... Qh5 {[%clk 0:02:46.2]}
39. Qe3 {[%clk 0:00:24.3]} 39... Rg6 {[%clk 0:02:45.3]} 40. Kg1 {[%clk
0:00:18.9]} 40... f6 {[%clk 0:02:43.8]} 41. Qe4 {[%clk 0:00:16.6]} 41... Ne5
{[%clk 0:02:44.7]} 42. Rxe5 {[%clk 0:00:15.1]} 42... fxe5 {[%clk 0:02:43.5]} 43.
Qxe5 {[%clk 0:00:16.2]} 43... Qxf3 {[%clk 0:02:41.2]} 44. Qh2+ {[%clk
0:00:15.6]} 44... Kg8 {[%clk 0:02:42.3]} 45. Qb8+ {[%clk 0:00:15.1]} 45... Kh7
{[%clk 0:02:37]} 46. Qh2+ {[%clk 0:00:15.6]} 46... Kg8 {[%clk 0:02:38.5]} 47.
Qb8+ {[%clk 0:00:16.1]} 47... Kh7 {[%clk 0:02:38.4]} 48. Qh2+ {[%clk 0:00:16.7]}
1/2-1/2

[Event "*** Titled Tuesday Blitz"]
[Site "Chess.com"]
[Date "2019.12.03"]
[Round "9"]
[White "Alopekos"]
[Black "joshdaruca"]
[Result "0-1"]
[WhiteElo "2499"]
[BlackElo "2720"]
[TimeControl "180+2"]
[EndTime "15:04:25 PST"]
[Termination "joshdaruca won by resignation"]

1. e4 {[%clk 0:03:01.9]} 1... c5 {[%clk 0:02:32.4]} 2. Nc3 {[%clk 0:02:59]} 2...
Nc6 {[%clk 0:02:28.9]} 3. Nge2 {[%clk 0:02:59.9]} 3... e6 {[%clk 0:02:28.9]} 4.
d4 {[%clk 0:03:00.7]} 4... cxd4 {[%clk 0:02:30.8]} 5. Nxd4 {[%clk 0:03:02.5]}
5... Qc7 {[%clk 0:02:30.9]} 6. Be3 {[%clk 0:03:03.6]} 6... a6 {[%clk 0:02:31]}
7. Be2 {[%clk 0:03:04.8]} 7... Nf6 {[%clk 0:02:31.8]} 8. O-O {[%clk 0:03:05.9]}
8... Be7 {[%clk 0:02:28.1]} 9. f4 {[%clk 0:03:06.3]} 9... d6 {[%clk 0:02:28.7]}
10. Qe1 {[%clk 0:03:07.9]} 10... O-O {[%clk 0:02:29.7]} 11. Qg3 {[%clk 0:03:08]}
11... d5 {[%clk 0:02:28.8]} 12. e5 {[%clk 0:02:56.9]} 12... Ne4 {[%clk
0:02:24.7]} 13. Nxe4 {[%clk 0:02:52.1]} 13... dxe4 {[%clk 0:02:26.3]} 14. f5
{[%clk 0:02:07.3]} 14... Nxd4 {[%clk 0:02:09.7]} 15. Bxd4 {[%clk 0:02:08.5]}
15... exf5 {[%clk 0:02:10.2]} 16. Kh1 {[%clk 0:02:06.2]} 16... Be6 {[%clk
0:02:08.7]} 17. c3 {[%clk 0:02:04.8]} 17... Bc5 {[%clk 0:02:06.1]} 18. Rad1
{[%clk 0:02:00]} 18... Rfd8 {[%clk 0:02:06.9]} 19. h3 {[%clk 0:01:54.4]} 19...
Qe7 {[%clk 0:02:04.5]} 20. Qe3 {[%clk 0:01:46.1]} 20... Bxd4 {[%clk 0:02:04.3]}
21. cxd4 {[%clk 0:01:38.9]} 21... g6 {[%clk 0:02:05.6]} 22. Rd2 {[%clk 0:01:35]}
22... b5 {[%clk 0:01:48.9]} 23. Bd1 {[%clk 0:01:33.6]} 23... Rac8 {[%clk
0:01:47.6]} 24. Bb3 {[%clk 0:01:34.5]} 24... Bxb3 {[%clk 0:01:48.2]} 25. axb3
{[%clk 0:01:10.4]} 25... Rd5 {[%clk 0:01:47.7]} 26. Rdf2 {[%clk 0:00:59.6]}
26... Rcd8 {[%clk 0:01:45.7]} 27. Rxf5 {[%clk 0:00:30.1]} 27... gxf5 {[%clk
0:01:46.7]} 28. Rxf5 {[%clk 0:00:31.2]} 28... Rxd4 {[%clk 0:01:24.1]} 29. Qh6
{[%clk 0:00:26.6]} 29... Kh8 {[%clk 0:01:25.2]} 30. Rh5 {[%clk 0:00:23.5]} 30...
f6 {[%clk 0:01:22]} 31. exf6 {[%clk 0:00:24.6]} 31... Rd1+ {[%clk 0:01:22.8]}
32. Kh2 {[%clk 0:00:23.9]} 32... Qc7+ {[%clk 0:01:21.9]} 0-1

[Event "*** Titled Tuesday Blitz"]
[Site "Chess.com"]
[Date "2019.12.03"]
[Round "9"]
[White "2165149677570"]
[Black "Kimster98"]
[Result "0-1"]
[WhiteElo "2361"]
[BlackElo "2575"]
[TimeControl "180+2"]
[EndTime "15:04:43 PST"]
[Termination "Kimster98 won by resignation"]

1. d4 {[%clk 0:03:01.9]} 1... Nf6 {[%clk 0:02:55.8]} 2. c4 {[%clk 0:03:03.2]}
2... e6 {[%clk 0:02:57]} 3. g3 {[%clk 0:03:02.2]} 3... Bb4+ {[%clk 0:02:56.8]}
4. Bd2 {[%clk 0:03:03.2]} 4... Be7 {[%clk 0:02:58.4]} 5. Bg2 {[%clk 0:03:03.1]}
5... d5 {[%clk 0:03:00]} 6. Nc3 {[%clk 0:03:04.2]} 6... dxc4 {[%clk 0:02:58.2]}
7. Qa4+ {[%clk 0:03:04.6]} 7... c6 {[%clk 0:02:59]} 8. Qxc4 {[%clk 0:03:05.8]}
8... O-O {[%clk 0:02:55.1]} 9. Qd3 {[%clk 0:03:06.8]} 9... Nbd7 {[%clk
0:02:47.4]} 10. e4 {[%clk 0:03:05.6]} 10... e5 {[%clk 0:02:45]} 11. d5 {[%clk
0:03:05.7]} 11... Nc5 {[%clk 0:02:37.8]} 12. Qc2 {[%clk 0:03:06.4]} 12... cxd5
{[%clk 0:02:37.8]} 13. exd5 {[%clk 0:03:07.4]} 13... g6 {[%clk 0:02:37.5]} 14.
Nge2 {[%clk 0:02:50.3]} 14... Bf5 {[%clk 0:02:37.6]} 15. Qd1 {[%clk 0:02:49.1]}
15... Nd3+ {[%clk 0:02:38.8]} 16. Kf1 {[%clk 0:02:50.7]} 16... Nxb2 {[%clk
0:02:40]} 17. Qb3 {[%clk 0:02:52.3]} 17... Nd3 {[%clk 0:02:39.6]} 18. h3 {[%clk
0:02:31.8]} 18... Bc5 {[%clk 0:02:31.6]} 19. g4 {[%clk 0:02:21.8]} 19... Nxf2
{[%clk 0:01:45.8]} 20. gxf5 {[%clk 0:02:19.2]} 20... Nxh1 {[%clk 0:01:47]} 21.
Bxh1 {[%clk 0:02:19.9]} 21... gxf5 {[%clk 0:01:46.3]} 22. Bg5 {[%clk 0:02:02.8]}
22... Qd6 {[%clk 0:01:43.7]} 23. Nb5 {[%clk 0:01:56.1]} 23... Qb6 {[%clk
0:01:42.1]} 24. Qg3 {[%clk 0:01:39.1]} 24... Nh5 {[%clk 0:01:30]} 25. Qh4 {[%clk
0:01:40]} 25... Qg6 {[%clk 0:01:05.9]} 26. Bf3 {[%clk 0:01:18]} 26... f6 {[%clk
0:00:59.2]} 27. Bd2 {[%clk 0:01:00.7]} 27... Ng7 {[%clk 0:00:58.6]} 28. Ng3
{[%clk 0:00:56.8]} 28... f4 {[%clk 0:00:58]} 29. Ne2 {[%clk 0:00:50.9]} 29... e4
{[%clk 0:00:40.1]} 30. Bg4 {[%clk 0:00:45.1]} 30... f5 {[%clk 0:00:35.6]} 31.
Nxf4 {[%clk 0:00:45.5]} 31... fxg4 {[%clk 0:00:27.3]} 0-1

[Event "*** Titled Tuesday Blitz"]
[Site "Chess.com"]
[Date "2019.12.03"]
[Round "9"]
[White "HiHaruka"]
[Black "Filip_Covic"]
[Result "0-1"]
[WhiteElo "2309"]
[BlackElo "2462"]
[TimeControl "180+2"]
[EndTime "15:04:49 PST"]
[Termination "Filip_Covic won on time"]

1. Nf3 {[%clk 0:03:01.9]} 1... Nf6 {[%clk 0:02:58.7]} 2. c4 {[%clk 0:03:01.3]}
2... g6 {[%clk 0:02:59.8]} 3. Nc3 {[%clk 0:02:38.9]} 3... Bg7 {[%clk 0:02:59.2]}
4. b3 {[%clk 0:02:31.2]} 4... O-O {[%clk 0:02:55.7]} 5. Bb2 {[%clk 0:02:30.3]}
5... c5 {[%clk 0:02:54.6]} 6. d4 {[%clk 0:02:29.3]} 6... cxd4 {[%clk 0:02:53.3]}
7. Nxd4 {[%clk 0:02:12.5]} 7... d5 {[%clk 0:02:46.8]} 8. e3 {[%clk 0:01:59.8]}
8... Nc6 {[%clk 0:02:37.6]} 9. Be2 {[%clk 0:01:37.4]} 9... dxc4 {[%clk
0:02:30.1]} 10. Nxc6 {[%clk 0:01:37.5]} 10... bxc6 {[%clk 0:02:26.7]} 11. Bxc4
{[%clk 0:01:22.1]} 11... Qa5 {[%clk 0:02:21.3]} 12. O-O {[%clk 0:01:10.1]} 12...
Rd8 {[%clk 0:02:14.1]} 13. Qf3 {[%clk 0:01:10.4]} 13... Bf5 {[%clk 0:02:09.9]}
14. Qxc6 {[%clk 0:00:13.5]} 14... Ng4 {[%clk 0:02:07.3]} 15. Na4 {[%clk
0:00:09.1]} 15... Bxb2 {[%clk 0:02:06.4]} 16. Nxb2 {[%clk 0:00:08.9]} 16... Qe5
{[%clk 0:02:08]} 17. g3 {[%clk 0:00:04.6]} 17... Qxb2 {[%clk 0:02:07.5]} 18. h3
{[%clk 0:00:03.9]} 18... Ne5 {[%clk 0:02:07.7]} 19. Qg2 {[%clk 0:00:04.8]} 19...
Nxc4 {[%clk 0:02:05.6]} 20. bxc4 {[%clk 0:00:05.9]} 20... Qe5 {[%clk 0:02:06.5]}
21. g4 {[%clk 0:00:06.1]} 21... Be4 {[%clk 0:02:06.9]} 22. f3 {[%clk 0:00:07.1]}
22... Bb7 {[%clk 0:02:07.7]} 23. e4 {[%clk 0:00:07.1]} 23... Qd4+ {[%clk
0:02:02.2]} 24. Kh1 {[%clk 0:00:07.9]} 24... Qxc4 {[%clk 0:02:01.8]} 25. Rf2
{[%clk 0:00:06.6]} 25... Rd3 {[%clk 0:01:59.3]} 26. Rb1 {[%clk 0:00:05.5]} 26...
Bc6 {[%clk 0:01:50.4]} 27. Rc2 {[%clk 0:00:05.7]} 27... Rc3 {[%clk 0:01:47.6]}
28. Rbc1 {[%clk 0:00:04.3]} 28... Rxc2 {[%clk 0:01:47.5]} 29. Rxc2 {[%clk
0:00:06.2]} 29... Qe6 {[%clk 0:01:46.9]} 30. Qd2 {[%clk 0:00:05.8]} 30... Rb8
{[%clk 0:01:38.8]} 31. Qf4 {[%clk 0:00:06.1]} 31... Rb1+ {[%clk 0:01:32.2]} 32.
Kg2 {[%clk 0:00:05.6]} 32... Ba4 {[%clk 0:01:27.2]} 33. Rd2 {[%clk 0:00:04.1]}
33... Qb6 {[%clk 0:01:21.7]} 0-1

[Event "*** Titled Tuesday Blitz"]
[Site "Chess.com"]
[Date "2019.12.03"]
[Round "9"]
[White "Man-Chuk"]
[Black "1977Ivan"]
[Result "1-0"]
[WhiteElo "2926"]
[BlackElo "2787"]
[TimeControl "180+2"]
[EndTime "15:04:55 PST"]
[Termination "Man-Chuk won by resignation"]

1. d4 {[%clk 0:03:01.9]} 1... Nf6 {[%clk 0:02:53.7]} 2. c4 {[%clk 0:03:02.3]}
2... c5 {[%clk 0:02:53.3]} 3. d5 {[%clk 0:03:01.7]} 3... b5 {[%clk 0:02:54.5]}
4. f3 {[%clk 0:03:01.8]} 4... g6 {[%clk 0:02:43.1]} 5. e4 {[%clk 0:03:01.5]}
5... Bg7 {[%clk 0:02:44.7]} 6. cxb5 {[%clk 0:02:59.9]} 6... a6 {[%clk
0:02:43.8]} 7. Na3 {[%clk 0:02:56.3]} 7... O-O {[%clk 0:02:43.6]} 8. Ne2 {[%clk
0:02:53.1]} 8... e6 {[%clk 0:02:43.9]} 9. Nc3 {[%clk 0:02:47]} 9... exd5 {[%clk
0:02:43.1]} 10. Nxd5 {[%clk 0:02:41.1]} 10... axb5 {[%clk 0:02:32.9]} 11. Nxb5
{[%clk 0:02:32.8]} 11... Nc6 {[%clk 0:02:20.4]} 12. Ndc3 {[%clk 0:02:11.9]}
12... Nd4 {[%clk 0:02:00]} 13. Be3 {[%clk 0:02:07.3]} 13... d5 {[%clk
0:01:54.4]} 14. e5 {[%clk 0:01:46.8]} 14... Nxb5 {[%clk 0:01:43.1]} 15. Bxb5
{[%clk 0:01:48.7]} 15... d4 {[%clk 0:01:38.7]} 16. exf6 {[%clk 0:01:48.3]} 16...
Bxf6 {[%clk 0:01:38.6]} 17. Ne4 {[%clk 0:00:57.6]} 17... dxe3 {[%clk 0:01:38.6]}
18. Qxd8 {[%clk 0:00:52.8]} 18... Bxd8 {[%clk 0:01:39.1]} 19. Ke2 {[%clk
0:00:52]} 19... f5 {[%clk 0:00:54.5]} 20. Nxc5 {[%clk 0:00:47.9]} 20... Bf6
{[%clk 0:00:48]} 21. a4 {[%clk 0:00:43.2]} 21... f4 {[%clk 0:00:42.2]} 22. Rhd1
{[%clk 0:00:24.6]} 22... Bf5 {[%clk 0:00:37.7]} 23. Nd7 {[%clk 0:00:18.3]} 23...
Bxd7 {[%clk 0:00:36.5]} 24. Rxd7 {[%clk 0:00:19.9]} 24... Bxb2 {[%clk
0:00:37.3]} 25. Rb1 {[%clk 0:00:19.6]} 25... Be5 {[%clk 0:00:34.6]} 26. Bc4+
{[%clk 0:00:20.4]} 26... Kh8 {[%clk 0:00:29.6]} 27. Rbb7 {[%clk 0:00:21.7]} 1-0

[Event "*** Titled Tuesday Blitz"]
[Site "Chess.com"]
[Date "2019.12.03"]
[Round "9"]
[White "AryanTari"]
[Black "Korchmar_Vasiliy"]
[Result "0-1"]
[WhiteElo "2834"]
[BlackElo "2766"]
[TimeControl "180+2"]
[EndTime "15:04:55 PST"]
[Termination "Korchmar_Vasiliy won by resignation"]

1. e4 {[%clk 0:03:01.9]} 1... c5 {[%clk 0:03:01.2]} 2. Nf3 {[%clk 0:03:02.1]}
2... d6 {[%clk 0:03:02.6]} 3. Nc3 {[%clk 0:03:02.5]} 3... Nc6 {[%clk 0:03:01.1]}
4. d4 {[%clk 0:03:01.4]} 4... cxd4 {[%clk 0:03:02.3]} 5. Nxd4 {[%clk 0:03:03.3]}
5... Nf6 {[%clk 0:03:03.5]} 6. g3 {[%clk 0:03:03.5]} 6... g6 {[%clk 0:03:02.4]}
7. Bg2 {[%clk 0:03:04.3]} 7... Bd7 {[%clk 0:03:03.7]} 8. Nde2 {[%clk 0:03:00.5]}
8... Bg7 {[%clk 0:02:53.5]} 9. O-O {[%clk 0:03:01.3]} 9... Qc8 {[%clk
0:02:53.1]} 10. Nf4 {[%clk 0:02:44.4]} 10... h5 {[%clk 0:02:51.3]} 11. h4 {[%clk
0:02:31.9]} 11... Ne5 {[%clk 0:02:52]} 12. Ncd5 {[%clk 0:02:25.2]} 12... g5
{[%clk 0:02:22.9]} 13. Nxf6+ {[%clk 0:02:20.2]} 13... Bxf6 {[%clk 0:02:22.3]}
14. Nd5 {[%clk 0:02:21.9]} 14... gxh4 {[%clk 0:02:11.6]} 15. Nxf6+ {[%clk
0:02:22.4]} 15... exf6 {[%clk 0:02:13.5]} 16. Qxd6 {[%clk 0:02:23.6]} 16... Be6
{[%clk 0:01:39]} 17. Bf4 {[%clk 0:01:47.4]} 17... h3 {[%clk 0:01:34.6]} 18. Bxe5
{[%clk 0:01:44.3]} 18... hxg2 {[%clk 0:01:31.8]} 19. Bxf6 {[%clk 0:01:45.3]}
19... gxf1=Q+ {[%clk 0:01:30.5]} 20. Rxf1 {[%clk 0:01:45.8]} 20... Qd7 {[%clk
0:01:26]} 21. Qb4 {[%clk 0:01:41.1]} 21... Rg8 {[%clk 0:01:19.5]} 22. Kh2 {[%clk
0:01:41.5]} 22... Rc8 {[%clk 0:01:16.4]} 23. Rd1 {[%clk 0:01:41.4]} 23... Qc7
{[%clk 0:00:57.4]} 24. Rd6 {[%clk 0:01:26.9]} 24... Rg6 {[%clk 0:00:50.4]} 25.
e5 {[%clk 0:00:55.9]} 25... Rg4 {[%clk 0:00:43]} 26. Qb5+ {[%clk 0:00:53.2]}
26... Bd7 {[%clk 0:00:40.4]} 27. Qd3 {[%clk 0:00:43.4]} 27... Qxc2 {[%clk
0:00:40.2]} 28. Rxd7 {[%clk 0:00:24.7]} 28... Qxf2+ {[%clk 0:00:39.7]} 29. Kh3
{[%clk 0:00:26.2]} 29... Rxg3+ {[%clk 0:00:34.5]} 30. Qxg3 {[%clk 0:00:27.3]}
30... Qxg3+ {[%clk 0:00:36.4]} 31. Kxg3 {[%clk 0:00:29.2]} 31... Kxd7 {[%clk
0:00:37.9]} 32. Kh4 {[%clk 0:00:30.7]} 32... Ke6 {[%clk 0:00:36.3]} 0-1

[Event "*** Titled Tuesday Blitz"]
[Site "Chess.com"]
[Date "2019.12.03"]
[Round "9"]
[White "FearNoEvil12"]
[Black "Orest_Vovk"]
[Result "1-0"]
[WhiteElo "2025"]
[BlackElo "2309"]
[TimeControl "180+2"]
[EndTime "15:05:01 PST"]
[Termination "FearNoEvil12 won by resignation"]

1. e4 {[%clk 0:03:01.9]} 1... Nc6 {[%clk 0:03:00.6]} 2. d4 {[%clk 0:03:01.9]}
2... e5 {[%clk 0:03:00.6]} 3. Nf3 {[%clk 0:03:01.5]} 3... Nxd4 {[%clk
0:02:59.9]} 4. Nxd4 {[%clk 0:03:00.8]} 4... exd4 {[%clk 0:02:58.5]} 5. Qxd4
{[%clk 0:03:02.7]} 5... Ne7 {[%clk 0:02:59.5]} 6. Bc4 {[%clk 0:03:03.5]} 6...
Nc6 {[%clk 0:03:00.4]} 7. Qe3 {[%clk 0:03:04.1]} 7... Bb4+ {[%clk 0:03:00.8]} 8.
Bd2 {[%clk 0:03:03.2]} 8... Bxd2+ {[%clk 0:03:01.6]} 9. Nxd2 {[%clk 0:03:04.8]}
9... O-O {[%clk 0:03:03.3]} 10. O-O-O {[%clk 0:03:03.6]} 10... d6 {[%clk
0:03:03.9]} 11. h4 {[%clk 0:03:00.2]} 11... Be6 {[%clk 0:03:02.6]} 12. Bb3
{[%clk 0:02:47.8]} 12... Bxb3 {[%clk 0:03:00.4]} 13. axb3 {[%clk 0:02:47.3]}
13... a5 {[%clk 0:03:00.8]} 14. Rh3 {[%clk 0:02:45.6]} 14... a4 {[%clk
0:03:01.7]} 15. bxa4 {[%clk 0:02:45.7]} 15... Rxa4 {[%clk 0:03:02.2]} 16. Nb3
{[%clk 0:02:46.7]} 16... Na5 {[%clk 0:02:58.6]} 17. Nxa5 {[%clk 0:02:43.4]}
17... Rxa5 {[%clk 0:02:58.7]} 18. Rd3 {[%clk 0:02:34.3]} 18... Qf6 {[%clk
0:02:57.7]} 19. Qd4 {[%clk 0:02:24]} 19... Qf4+ {[%clk 0:02:48.9]} 20. Qe3
{[%clk 0:02:22.6]} 20... Ra1+ {[%clk 0:02:45.8]} 21. Kd2 {[%clk 0:02:22.4]}
21... Qxe3+ {[%clk 0:02:43.7]} 22. Rdxe3 {[%clk 0:02:22.4]} 22... Rg1 {[%clk
0:02:39]} 23. Rhg3 {[%clk 0:02:21.1]} 23... g6 {[%clk 0:02:40.1]} 24. h5 {[%clk
0:02:20.3]} 24... Ra8 {[%clk 0:02:38.1]} 25. hxg6 {[%clk 0:02:19]} 25... hxg6
{[%clk 0:02:38.9]} 26. e5 {[%clk 0:02:20.2]} 26... dxe5 {[%clk 0:02:37.2]} 27.
Rxe5 {[%clk 0:02:20.6]} 27... Rd8+ {[%clk 0:02:37.5]} 28. Kc3 {[%clk 0:02:21.5]}
28... Rd6 {[%clk 0:02:36.8]} 29. Re7 {[%clk 0:02:20.7]} 29... Rc6+ {[%clk
0:02:37.8]} 30. Kb3 {[%clk 0:02:21.3]} 30... Rf6 {[%clk 0:02:36.1]} 31. Rxc7
{[%clk 0:02:10.5]} 31... Rxf2 {[%clk 0:02:33]} 32. Rxb7 {[%clk 0:02:10.7]} 32...
Rgxg2 {[%clk 0:02:32.9]} 33. Rxg2 {[%clk 0:02:11]} 33... Rxg2 {[%clk 0:02:34.8]}
34. c4 {[%clk 0:02:05.6]} 34... g5 {[%clk 0:02:33.1]} 35. c5 {[%clk 0:02:06.2]}
35... Rg1 {[%clk 0:02:34.4]} 36. Rb4 {[%clk 0:02:03]} 36... Kf8 {[%clk
0:02:28.1]} 37. Rc4 {[%clk 0:01:58.6]} 37... Ke7 {[%clk 0:02:28.9]} 38. Kb4
{[%clk 0:01:57.4]} 38... Rb1 {[%clk 0:02:25.5]} 39. b3 {[%clk 0:01:57.6]} 39...
f5 {[%clk 0:02:26.2]} 40. c6 {[%clk 0:01:58]} 40... Kd8 {[%clk 0:02:27.3]} 41.
Rc5 {[%clk 0:01:51.5]} 41... Rf1 {[%clk 0:02:27.4]} 42. Kb5 {[%clk 0:01:45.5]}
42... Kc7 {[%clk 0:02:26]} 43. Rd5 {[%clk 0:01:45]} 43... g4 {[%clk 0:02:18.1]}
44. Rd7+ {[%clk 0:01:45.4]} 44... Kc8 {[%clk 0:02:19.5]} 45. Rg7 {[%clk
0:01:45.6]} 45... Rb1 {[%clk 0:02:02.8]} 46. b4 {[%clk 0:01:45.6]} 46... Rb3
{[%clk 0:01:59]} 47. Kc5 {[%clk 0:01:45.8]} 47... g3 {[%clk 0:01:57.7]} 48. b5
{[%clk 0:01:45.8]} 48... f4 {[%clk 0:01:58.5]} 49. b6 {[%clk 0:01:46.7]} 49...
Rc3+ {[%clk 0:01:56.1]} 50. Kd5 {[%clk 0:01:46.9]} 50... Rd3+ {[%clk 0:01:56.4]}
51. Ke4 {[%clk 0:01:45.3]} 51... Rd8 {[%clk 0:01:50.1]} 52. Kxf4 {[%clk
0:01:43.9]} 52... Rf8+ {[%clk 0:01:48.2]} 53. Kxg3 {[%clk 0:01:43.1]} 53... Kb8
{[%clk 0:01:48.8]} 54. Kg4 {[%clk 0:01:41.2]} 54... Rc8 {[%clk 0:01:44.7]} 55.
Rb7+ {[%clk 0:01:32.5]} 55... Ka8 {[%clk 0:01:43.8]} 56. Rc7 {[%clk 0:01:32.5]}
56... Rb8 {[%clk 0:01:43.8]} 57. b7+ {[%clk 0:01:32.1]} 57... Ka7 {[%clk
0:01:45.3]} 58. Kf5 {[%clk 0:01:30.9]} 58... Rf8+ {[%clk 0:01:41.2]} 59. Ke6
{[%clk 0:01:31.8]} 59... Rf1 {[%clk 0:01:41.2]} 60. Rc8 {[%clk 0:01:29.7]} 60...
Re1+ {[%clk 0:01:40.4]} 61. Kd6 {[%clk 0:01:30.1]} 61... Rd1+ {[%clk 0:01:41.6]}
62. Kc7 {[%clk 0:01:30.8]} 62... Rd7+ {[%clk 0:01:38.5]} 63. Kxd7 {[%clk
0:01:28.3]} 1-0